[Event "Titled Tuesday Blitz June 28 Early 2022"]
[White "Winkels, Marcel"]
[Black "Nilsson, Joakim"]
[WhiteFideId "1003887"]
[BlackFideId "1723383"]
[WhiteElo "1900"]
[BlackElo "2210"]
[Result "0-1"]
[Round "03"]
[TimeControl "180+1"]
[Date "2022.06.28"]
[WhiteClock "0:00:02"]
[BlackClock "0:01:33"]

1. e4 {[%clk 0:03:00]}  c5 {[%clk 0:02:59]} 2. Nf3 {[%clk 0:03:00]}  e6 {[%clk 0:03:00]} 3. d4 {[%clk 0:02:57]}  cxd4 {[%clk 0:03:01]} 4. Nxd4 {[%clk 0:02:57]}  a6 {[%clk 0:03:01]} 5. Nc3 {[%clk 0:02:55]}  Qc7 {[%clk 0:03:01]} 6. a3 {[%clk 0:02:54]}  b5 {[%clk 0:03:02]} 7. Bd3 {[%clk 0:02:53]}  Bb7 {[%clk 0:03:02]} 8. O-O {[%clk 0:02:52]}  Nf6 {[%clk 0:03:03]} 9. Kh1 {[%clk 0:02:37]}  h5 {[%clk 0:02:57]} 10. f4 {[%clk 0:02:33]}  Ng4 {[%clk 0:02:57]} 11. Qf3 {[%clk 0:02:20]}  Bc5 {[%clk 0:02:55]} 12. Nb3 {[%clk 0:02:16]}  Bb6 {[%clk 0:02:54]} 13. Bd2 {[%clk 0:02:11]}  Nc6 {[%clk 0:02:51]} 14. Rae1 {[%clk 0:02:06]}  Ne7 {[%clk 0:02:48]} 15. Qg3 {[%clk 0:01:58]}  O-O-O {[%clk 0:02:40]} 16. e5 {[%clk 0:01:48]}  g6 {[%clk 0:02:31]} 17. Ne4 {[%clk 0:01:42]}  Nf5 {[%clk 0:02:32]} 18. Qf3 {[%clk 0:01:27]}  Kb8 {[%clk 0:02:29]} 19. Qe2 {[%clk 0:01:16]}  Bc6 {[%clk 0:02:21]} 20. c4 {[%clk 0:01:06]}  bxc4 {[%clk 0:02:04]} 21. Bxc4 {[%clk 0:01:03]}  a5 {[%clk 0:02:04]} 22. Bd3 {[%clk 0:00:53]}  a4 {[%clk 0:02:04]} 23. Nbc5 {[%clk 0:00:46]}  Bxc5 {[%clk 0:01:52]} 24. Nxc5 {[%clk 0:00:44]}  Bxg2+ {[%clk 0:01:47]} 25. Qxg2 {[%clk 0:00:40]}  Qxc5 {[%clk 0:01:48]} 26. Ba6 {[%clk 0:00:36]}  Qb6 {[%clk 0:01:46]} 27. Bc4 {[%clk 0:00:25]}  Rc8 {[%clk 0:01:43]} 28. Qe2 {[%clk 0:00:19]}  Qc6+ {[%clk 0:01:41]} 29. Kg1 {[%clk 0:00:17]}  Qxc4 {[%clk 0:01:40]} 30. Bc3 {[%clk 0:00:13]}  Qxe2 {[%clk 0:01:37]} 31. Rxe2 {[%clk 0:00:12]}  Rc4 {[%clk 0:01:37]} 32. Rd2 {[%clk 0:00:11]}  Nge3 {[%clk 0:01:36]} 33. Re1 {[%clk 0:00:10]}  Nd5 {[%clk 0:01:36]} 34. Bb4 {[%clk 0:00:08]}  Rxf4 {[%clk 0:01:35]} 35. Bd6+ {[%clk 0:00:06]}  Nxd6 {[%clk 0:01:35]} 36. exd6 {[%clk 0:00:06]}  Rc8 {[%clk 0:01:34]} 37. Rb1 {[%clk 0:00:03]}  Rg4+ {[%clk 0:01:33]} 38. Kf2 {[%clk 0:00:03]}  Rcc4 {[%clk 0:01:33]} 39. b3 {[%clk 0:00:02]}  Rcf4+ {[%clk 0:01:33]} 0-1


[Site "https://www.chess.com"]

[Event "Titled Tuesday Blitz June 28 Early 2022"]
[White "Yang, Kaiqi"]
[Black "Lashkin, Jegor"]
[WhiteFideId "8604398"]
[BlackFideId "13907808"]
[WhiteElo "2373"]
[BlackElo "2368"]
[Result "1/2-1/2"]
[Round "03"]
[TimeControl "180+1"]
[Date "2022.06.28"]
[WhiteClock "0:00:10"]
[BlackClock "0:00:06"]

1. d4 {[%clk 0:03:00]}  Nf6 {[%clk 0:02:59]} 2. c4 {[%clk 0:03:00]}  e6 {[%clk 0:03:00]} 3. Nc3 {[%clk 0:03:00]}  Bb4 {[%clk 0:03:00]} 4. e3 {[%clk 0:03:00]}  O-O {[%clk 0:03:00]} 5. Nf3 {[%clk 0:03:01]}  d5 {[%clk 0:03:00]} 6. Bd2 {[%clk 0:03:02]}  b6 {[%clk 0:03:00]} 7. cxd5 {[%clk 0:03:01]}  exd5 {[%clk 0:03:01]} 8. Rc1 {[%clk 0:03:01]}  Bb7 {[%clk 0:02:59]} 9. Bd3 {[%clk 0:03:00]}  Be7 {[%clk 0:02:57]} 10. O-O {[%clk 0:02:58]}  c5 {[%clk 0:02:58]} 11. Ne5 {[%clk 0:02:58]}  Nc6 {[%clk 0:02:57]} 12. Be1 {[%clk 0:02:57]}  Bd6 {[%clk 0:02:56]} 13. Ng4 {[%clk 0:02:46]}  cxd4 {[%clk 0:02:28]} 14. exd4 {[%clk 0:02:23]}  Nb4 {[%clk 0:02:09]} 15. Be2 {[%clk 0:01:54]}  Nxg4 {[%clk 0:02:07]} 16. Bxg4 {[%clk 0:01:54]}  Ba6 {[%clk 0:01:30]} 17. Be2 {[%clk 0:01:53]}  Bxe2 {[%clk 0:01:19]} 18. Nxe2 {[%clk 0:01:52]}  Nxa2 {[%clk 0:01:17]} 19. Rc6 {[%clk 0:01:11]}  Nb4 {[%clk 0:01:14]} 20. Bxb4 {[%clk 0:01:07]}  Bxb4 {[%clk 0:01:14]} 21. Qb3 {[%clk 0:01:03]}  a5 {[%clk 0:01:08]} 22. Nf4 {[%clk 0:01:01]}  Qh4 {[%clk 0:00:35]} 23. g3 {[%clk 0:00:58]}  Qg4 {[%clk 0:00:31]} 24. Qxd5 {[%clk 0:00:44]}  Rad8 {[%clk 0:00:28]} 25. Qc4 {[%clk 0:00:37]}  Bd6 {[%clk 0:00:15]} 26. Nd5 {[%clk 0:00:28]}  b5 {[%clk 0:00:14]} 27. Qxb5 {[%clk 0:00:24]}  Qxd4 {[%clk 0:00:14]} 28. Ne3 {[%clk 0:00:16]}  Bb4 {[%clk 0:00:10]} 29. Qc4 {[%clk 0:00:15]}  Qxb2 {[%clk 0:00:10]} 30. Nd5 {[%clk 0:00:11]}  Qe5 {[%clk 0:00:06]} 31. Nxb4 {[%clk 0:00:08]}  Rd4 {[%clk 0:00:05]} 32. Qc5 {[%clk 0:00:03]}  Qxc5 {[%clk 0:00:05]} 33. Rxc5 {[%clk 0:00:03]}  axb4 {[%clk 0:00:05]} 34. Rb5 {[%clk 0:00:04]}  g6 {[%clk 0:00:03]} 35. Rb1 {[%clk 0:00:04]}  Re8 {[%clk 0:00:04]} 36. R1xb4 {[%clk 0:00:04]}  Rd1+ {[%clk 0:00:04]} 37. Kg2 {[%clk 0:00:04]}  Rd6 {[%clk 0:00:04]} 38. Rb8 {[%clk 0:00:04]}  Rxb8 {[%clk 0:00:03]} 39. Rxb8+ {[%clk 0:00:05]}  Kg7 {[%clk 0:00:04]} 40. Rb2 {[%clk 0:00:05]}  h5 {[%clk 0:00:05]} 41. h4 {[%clk 0:00:04]}  Rf6 {[%clk 0:00:05]} 42. Rc2 {[%clk 0:00:05]}  Rf5 {[%clk 0:00:06]} 43. Rb2 {[%clk 0:00:05]}  Rf6 {[%clk 0:00:06]} 44. Rc2 {[%clk 0:00:05]}  Rf5 {[%clk 0:00:07]} 45. Rb2 {[%clk 0:00:06]}  Rd5 {[%clk 0:00:07]} 46. Rc2 {[%clk 0:00:06]}  Rd4 {[%clk 0:00:07]} 47. Rb2 {[%clk 0:00:07]}  Rd3 {[%clk 0:00:08]} 48. Rc2 {[%clk 0:00:07]}  Rb3 {[%clk 0:00:08]} 49. Rd2 {[%clk 0:00:07]}  Rb7 {[%clk 0:00:09]} 50. Rd4 {[%clk 0:00:07]}  f6 {[%clk 0:00:09]} 51. Rd2 {[%clk 0:00:07]}  Re7 {[%clk 0:00:09]} 52. Rc2 {[%clk 0:00:08]}  Kf7 {[%clk 0:00:10]} 53. Rd2 {[%clk 0:00:08]}  g5 {[%clk 0:00:10]} 54. hxg5 {[%clk 0:00:07]}  fxg5 {[%clk 0:00:11]} 55. Rd6 {[%clk 0:00:08]}  Kg7 {[%clk 0:00:11]} 56. Rc6 {[%clk 0:00:08]}  Rf7 {[%clk 0:00:11]} 57. Rd6 {[%clk 0:00:08]}  Kh7 {[%clk 0:00:11]} 58. Rc6 {[%clk 0:00:08]}  Kg7 {[%clk 0:00:11]} 59. Rd6 {[%clk 0:00:09]}  Rf5 {[%clk 0:00:11]} 60. Rc6 {[%clk 0:00:09]}  Rd5 {[%clk 0:00:11]} 61. Re6 {[%clk 0:00:09]}  Rc5 {[%clk 0:00:12]} 62. Rd6 {[%clk 0:00:09]}  Rf5 {[%clk 0:00:10]} 63. Re6 {[%clk 0:00:09]}  Rf6 {[%clk 0:00:10]} 64. Re7+ {[%clk 0:00:08]}  Kg6 {[%clk 0:00:10]} 65. Re8 {[%clk 0:00:09]}  Rd6 {[%clk 0:00:10]} 66. Rg8+ {[%clk 0:00:09]}  Kf6 {[%clk 0:00:10]} 67. Rh8 {[%clk 0:00:09]}  Kg6 {[%clk 0:00:11]} 68. Rg8+ {[%clk 0:00:10]}  Kf5 {[%clk 0:00:10]} 69. Rh8 {[%clk 0:00:10]}  Kg6 {[%clk 0:00:06]} 70. Rg8+ {[%clk 0:00:10]} 1/2-1/2


[Site "https://www.chess.com"]

[Event "Titled Tuesday Blitz June 28 Early 2022"]
[White "Zaksaite, Salomeja"]
[Black "Ocelak, Jakub"]
[WhiteFideId "12801496"]
[BlackFideId "23707933"]
[WhiteElo "1953"]
[BlackElo "2048"]
[Result "0-1"]
[Round "03"]
[TimeControl "180+1"]
[Date "2022.06.28"]
[WhiteClock "0:00:01"]
[BlackClock "0:00:15"]

1. e4 {[%clk 0:02:56]}  c5 {[%clk 0:02:56]} 2. Nf3 {[%clk 0:02:56]}  d6 {[%clk 0:02:55]} 3. d4 {[%clk 0:02:54]}  cxd4 {[%clk 0:02:55]} 4. Nxd4 {[%clk 0:02:54]}  Nf6 {[%clk 0:02:55]} 5. Nc3 {[%clk 0:02:53]}  Nbd7 {[%clk 0:02:56]} 6. g4 {[%clk 0:02:43]}  h6 {[%clk 0:02:55]} 7. Rg1 {[%clk 0:02:41]}  a6 {[%clk 0:02:39]} 8. Be3 {[%clk 0:02:40]}  Qc7 {[%clk 0:02:37]} 9. Qd2 {[%clk 0:02:39]}  b5 {[%clk 0:02:34]} 10. a3 {[%clk 0:02:38]}  Bb7 {[%clk 0:02:34]} 11. Bd3 {[%clk 0:02:36]}  Rc8 {[%clk 0:02:29]} 12. h4 {[%clk 0:02:35]}  Ne5 {[%clk 0:02:20]} 13. g5 {[%clk 0:02:29]}  hxg5 {[%clk 0:02:05]} 14. hxg5 {[%clk 0:02:27]}  Nfg4 {[%clk 0:02:05]} 15. Bf4 {[%clk 0:02:22]}  Qc5 {[%clk 0:01:56]} 16. Nb3 {[%clk 0:02:12]}  Nf3+ {[%clk 0:01:51]} 17. Kd1 {[%clk 0:02:09]}  Nxd2 {[%clk 0:01:33]} 18. Nxc5 {[%clk 0:02:07]}  Rxc5 {[%clk 0:01:33]} 19. Rxg4 {[%clk 0:00:58]}  Rh1+ {[%clk 0:01:31]} 20. Kxd2 {[%clk 0:00:57]}  Rxa1 {[%clk 0:01:31]} 21. Nd1 {[%clk 0:00:48]}  g6 {[%clk 0:01:22]} 22. Be3 {[%clk 0:00:46]}  Rc7 {[%clk 0:01:03]} 23. Bd4 {[%clk 0:00:43]}  e5 {[%clk 0:00:51]} 24. Bc3 {[%clk 0:00:43]}  Be7 {[%clk 0:00:49]} 25. Rg1 {[%clk 0:00:29]}  Kd7 {[%clk 0:00:47]} 26. Ba5 {[%clk 0:00:20]}  Rc8 {[%clk 0:00:46]} 27. f3 {[%clk 0:00:19]}  Rh8 {[%clk 0:00:45]} 28. Be2 {[%clk 0:00:11]}  Rh5 {[%clk 0:00:42]} 29. f4 {[%clk 0:00:09]}  Rh2 {[%clk 0:00:34]} 30. fxe5 {[%clk 0:00:08]}  dxe5 {[%clk 0:00:29]} 31. Ke3 {[%clk 0:00:07]}  Bxe4 {[%clk 0:00:23]} 32. Kxe4 {[%clk 0:00:05]}  Rxe2+ {[%clk 0:00:23]} 33. Kd3 {[%clk 0:00:05]}  Rh2 {[%clk 0:00:21]} 34. Bc3 {[%clk 0:00:04]}  Ke6 {[%clk 0:00:21]} 35. Re1 {[%clk 0:00:03]}  Rh3+ {[%clk 0:00:20]} 36. Ke4 {[%clk 0:00:01]}  Bxg5 {[%clk 0:00:15]} 0-1


[Site "https://www.chess.com"]

[Event "Titled Tuesday Blitz June 28 Early 2022"]
[White "Adla, Diego"]
[Black "Gormally, Daniel W"]
[WhiteFideId "100072"]
[BlackFideId "406465"]
[WhiteElo "2377"]
[BlackElo "2543"]
[Result "0-1"]
[Round "04"]
[TimeControl "180+1"]
[Date "2022.06.28"]
[WhiteClock "0:01:53"]
[BlackClock "0:01:38"]

1. c4 {[%clk 0:02:57]}  e5 {[%clk 0:02:59]} 2. Nc3 {[%clk 0:02:43]}  Bb4 {[%clk 0:02:59]} 3. Nf3 {[%clk 0:02:41]}  Bxc3 {[%clk 0:02:59]} 4. dxc3 {[%clk 0:02:40]}  Nc6 {[%clk 0:03:00]} 5. g3 {[%clk 0:02:39]}  d6 {[%clk 0:02:59]} 6. Bg2 {[%clk 0:02:39]}  Be6 {[%clk 0:02:59]} 7. b3 {[%clk 0:02:38]}  h6 {[%clk 0:02:57]} 8. O-O {[%clk 0:02:38]}  Qd7 {[%clk 0:02:57]} 9. e4 {[%clk 0:02:30]}  Bh3 {[%clk 0:02:56]} 10. Ne1 {[%clk 0:02:30]}  Nge7 {[%clk 0:02:53]} 11. Nd3 {[%clk 0:02:29]}  Bxg2 {[%clk 0:02:50]} 12. Kxg2 {[%clk 0:02:29]}  O-O-O {[%clk 0:02:45]} 13. a4 {[%clk 0:02:26]}  f5 {[%clk 0:02:44]} 14. Qe2 {[%clk 0:02:23]}  g5 {[%clk 0:02:40]} 15. exf5 {[%clk 0:02:21]}  Qxf5 {[%clk 0:02:40]} 16. Re1 {[%clk 0:02:20]}  Ng6 {[%clk 0:02:29]} 17. Qe4 {[%clk 0:02:20]}  Qxe4+ {[%clk 0:02:03]} 18. Rxe4 {[%clk 0:02:19]}  d5 {[%clk 0:02:03]} 19. cxd5 {[%clk 0:02:14]}  Rxd5 {[%clk 0:02:04]} 20. Nb4 {[%clk 0:02:13]}  Nxb4 {[%clk 0:02:04]} 21. Rxb4 {[%clk 0:02:14]}  Rd1 {[%clk 0:02:04]} 22. Bb2 {[%clk 0:02:13]}  Rhd8 {[%clk 0:01:53]} 23. Rxd1 {[%clk 0:02:09]}  Rxd1 {[%clk 0:01:53]} 24. Re4 {[%clk 0:02:08]}  Kd7 {[%clk 0:01:45]} 25. h4 {[%clk 0:02:01]}  gxh4 {[%clk 0:01:44]} 26. gxh4 {[%clk 0:02:02]}  Ke6 {[%clk 0:01:39]} 27. c4 {[%clk 0:01:59]}  Kf5 {[%clk 0:01:39]} 28. Re2 {[%clk 0:01:53]}  Nf4+ {[%clk 0:01:38]} 0-1


[Site "https://www.chess.com"]

[Event "Titled Tuesday Blitz June 28 Early 2022"]
[White "Alinasab, Mobina"]
[Black "Estrada Nieto, Julian"]
[WhiteFideId "12528897"]
[BlackFideId "5101018"]
[WhiteElo "2031"]
[BlackElo "2252"]
[Result "1-0"]
[Round "04"]
[TimeControl "180+1"]
[Date "2022.06.28"]
[WhiteClock "0:00:19"]
[BlackClock "0:00:11"]

1. Nf3 {[%clk 0:03:00]}  d5 {[%clk 0:02:59]} 2. g3 {[%clk 0:03:00]}  Nf6 {[%clk 0:02:59]} 3. Bg2 {[%clk 0:02:58]}  c6 {[%clk 0:03:00]} 4. O-O {[%clk 0:02:58]}  Bg4 {[%clk 0:03:00]} 5. d4 {[%clk 0:02:59]}  Nbd7 {[%clk 0:02:59]} 6. b3 {[%clk 0:02:59]}  e6 {[%clk 0:02:59]} 7. Bb2 {[%clk 0:02:59]}  Bd6 {[%clk 0:02:58]} 8. c4 {[%clk 0:02:59]}  O-O {[%clk 0:02:57]} 9. Nc3 {[%clk 0:03:00]}  Qe7 {[%clk 0:02:50]} 10. Nd2 {[%clk 0:02:56]}  Ba3 {[%clk 0:02:42]} 11. Qc2 {[%clk 0:02:55]}  Bf5 {[%clk 0:02:41]} 12. e4 {[%clk 0:02:29]}  dxe4 {[%clk 0:02:38]} 13. Ndxe4 {[%clk 0:02:30]}  Bxb2 {[%clk 0:02:32]} 14. Qxb2 {[%clk 0:02:27]}  Nxe4 {[%clk 0:02:31]} 15. Nxe4 {[%clk 0:02:28]}  Nf6 {[%clk 0:02:31]} 16. Nc3 {[%clk 0:02:24]}  Rfd8 {[%clk 0:02:28]} 17. Rad1 {[%clk 0:02:23]}  Rd7 {[%clk 0:02:16]} 18. Rfe1 {[%clk 0:02:21]}  Qd8 {[%clk 0:02:12]} 19. Na4 {[%clk 0:02:17]}  Rd6 {[%clk 0:01:58]} 20. Nc5 {[%clk 0:02:11]}  Qc7 {[%clk 0:01:57]} 21. b4 {[%clk 0:02:07]}  Rad8 {[%clk 0:01:55]} 22. Nb3 {[%clk 0:02:07]}  h5 {[%clk 0:01:42]} 23. h4 {[%clk 0:02:03]}  Ng4 {[%clk 0:01:36]} 24. Bf3 {[%clk 0:01:58]}  b6 {[%clk 0:01:26]} 25. c5 {[%clk 0:01:48]}  bxc5 {[%clk 0:01:24]} 26. dxc5 {[%clk 0:01:42]}  Rd3 {[%clk 0:01:20]} 27. Rxd3 {[%clk 0:01:33]}  Rxd3 {[%clk 0:01:20]} 28. Qe2 {[%clk 0:01:33]}  Qd7 {[%clk 0:00:56]} 29. Rd1 {[%clk 0:01:29]}  Ne5 {[%clk 0:00:48]} 30. Rxd3 {[%clk 0:01:08]}  Nxd3 {[%clk 0:00:48]} 31. a3 {[%clk 0:01:00]}  g6 {[%clk 0:00:41]} 32. Na5 {[%clk 0:00:59]}  Qd4 {[%clk 0:00:22]} 33. Nxc6 {[%clk 0:00:50]}  Qa1+ {[%clk 0:00:22]} 34. Qd1 {[%clk 0:00:49]}  Qb2 {[%clk 0:00:17]} 35. Ne7+ {[%clk 0:00:21]}  Kf8 {[%clk 0:00:17]} 36. Nxf5 {[%clk 0:00:16]}  Qxf2+ {[%clk 0:00:15]} 37. Kh1 {[%clk 0:00:16]}  gxf5 {[%clk 0:00:13]} 38. Qxd3 {[%clk 0:00:16]}  Qxg3 {[%clk 0:00:13]} 39. Qd6+ {[%clk 0:00:15]}  Qxd6 {[%clk 0:00:12]} 40. cxd6 {[%clk 0:00:16]}  Ke8 {[%clk 0:00:12]} 41. Bc6+ {[%clk 0:00:16]}  Kd8 {[%clk 0:00:13]} 42. Kg2 {[%clk 0:00:17]}  e5 {[%clk 0:00:13]} 43. Kf3 {[%clk 0:00:18]}  f6 {[%clk 0:00:14]} 44. Ke3 {[%clk 0:00:18]}  f4+ {[%clk 0:00:13]} 45. Ke4 {[%clk 0:00:18]}  f5+ {[%clk 0:00:13]} 46. Kxe5 {[%clk 0:00:14]}  f3 {[%clk 0:00:13]} 47. Bxf3 {[%clk 0:00:14]}  Kd7 {[%clk 0:00:13]} 48. Bxh5 {[%clk 0:00:15]}  a6 {[%clk 0:00:13]} 49. Be2 {[%clk 0:00:16]}  f4 {[%clk 0:00:12]} 50. Bxa6 {[%clk 0:00:17]}  f3 {[%clk 0:00:12]} 51. Bb5+ {[%clk 0:00:17]}  Kd8 {[%clk 0:00:11]} 52. Ke6 {[%clk 0:00:18]}  f2 {[%clk 0:00:11]} 53. Bf1 {[%clk 0:00:19]} 1-0


[Site "https://www.chess.com"]

[Event "Titled Tuesday Blitz June 28 Early 2022"]
[White "Al-Tarboush, Ward"]
[Black "Silva, Pedro Gil Ferreira Da"]
[WhiteFideId "7601450"]
[BlackFideId "1946102"]
[WhiteElo "2249"]
[BlackElo "1863"]
[Result "1-0"]
[Round "04"]
[TimeControl "180+1"]
[Date "2022.06.28"]
[WhiteClock "0:00:07"]
[BlackClock "0:00:14"]

1. e4 {[%clk 0:03:00]}  c5 {[%clk 0:03:00]} 2. Nf3 {[%clk 0:03:01]}  d6 {[%clk 0:03:00]} 3. d4 {[%clk 0:03:01]}  cxd4 {[%clk 0:03:01]} 4. Nxd4 {[%clk 0:03:01]}  Nf6 {[%clk 0:03:01]} 5. Nc3 {[%clk 0:03:01]}  a6 {[%clk 0:03:02]} 6. h3 {[%clk 0:03:01]}  e5 {[%clk 0:02:57]} 7. Nde2 {[%clk 0:03:02]}  Be7 {[%clk 0:02:57]} 8. g4 {[%clk 0:03:01]}  h6 {[%clk 0:02:55]} 9. Bg2 {[%clk 0:03:01]}  Be6 {[%clk 0:02:56]} 10. O-O {[%clk 0:03:01]}  Nbd7 {[%clk 0:02:56]} 11. Ng3 {[%clk 0:03:01]}  O-O {[%clk 0:02:56]} 12. Nf5 {[%clk 0:03:01]}  Nc5 {[%clk 0:02:46]} 13. b4 {[%clk 0:02:41]}  Ncd7 {[%clk 0:02:45]} 14. Nxd6 {[%clk 0:02:36]}  Qc7 {[%clk 0:02:45]} 15. Nd5 {[%clk 0:02:30]}  Bxd5 {[%clk 0:02:44]} 16. Nf5 {[%clk 0:02:30]}  Bxe4 {[%clk 0:02:22]} 17. Nxe7+ {[%clk 0:02:29]}  Kh8 {[%clk 0:02:22]} 18. Be3 {[%clk 0:02:04]}  Bxg2 {[%clk 0:02:19]} 19. Kxg2 {[%clk 0:02:03]}  Rfe8 {[%clk 0:01:50]} 20. Nf5 {[%clk 0:02:02]}  Rad8 {[%clk 0:01:26]} 21. Qc1 {[%clk 0:02:01]}  Qc6+ {[%clk 0:01:25]} 22. Kg1 {[%clk 0:02:01]}  Nd5 {[%clk 0:01:21]} 23. c4 {[%clk 0:02:01]}  Nxe3 {[%clk 0:01:15]} 24. Nxe3 {[%clk 0:02:02]}  Nf6 {[%clk 0:01:14]} 25. a4 {[%clk 0:01:56]}  Rd4 {[%clk 0:01:13]} 26. b5 {[%clk 0:01:55]}  Qf3 {[%clk 0:01:13]} 27. Kh2 {[%clk 0:01:37]}  Red8 {[%clk 0:01:02]} 28. Qc2 {[%clk 0:01:32]}  Rd2 {[%clk 0:01:00]} 29. Rad1 {[%clk 0:01:14]}  Rxc2 {[%clk 0:00:38]} 30. Rxd8+ {[%clk 0:01:14]}  Kh7 {[%clk 0:00:39]} 31. Nxc2 {[%clk 0:01:14]}  Qf4+ {[%clk 0:00:39]} 32. Kg1 {[%clk 0:01:10]}  Nxg4 {[%clk 0:00:38]} 33. hxg4 {[%clk 0:00:55]}  Qxg4+ {[%clk 0:00:39]} 34. Kh2 {[%clk 0:00:55]}  Qh4+ {[%clk 0:00:39]} 35. Kg1 {[%clk 0:00:53]}  Qxd8 {[%clk 0:00:40]} 36. Ne3 {[%clk 0:00:52]}  Qg5+ {[%clk 0:00:37]} 37. Kh2 {[%clk 0:00:49]}  f5 {[%clk 0:00:38]} 38. b6 {[%clk 0:00:27]}  f4 {[%clk 0:00:37]} 39. Nd5 {[%clk 0:00:26]}  Qh4+ {[%clk 0:00:35]} 40. Kg1 {[%clk 0:00:20]}  e4 {[%clk 0:00:22]} 41. a5 {[%clk 0:00:19]}  e3 {[%clk 0:00:20]} 42. fxe3 {[%clk 0:00:19]}  Qg3+ {[%clk 0:00:20]} 43. Kh1 {[%clk 0:00:18]}  f3 {[%clk 0:00:21]} 44. Nf4 {[%clk 0:00:17]}  f2 {[%clk 0:00:20]} 45. c5 {[%clk 0:00:11]}  Qxe3 {[%clk 0:00:18]} 46. c6 {[%clk 0:00:07]}  Qxf4 {[%clk 0:00:17]} 47. c7 {[%clk 0:00:07]}  Qf3+ {[%clk 0:00:16]} 48. Kh2 {[%clk 0:00:07]}  Qh5+ {[%clk 0:00:16]} 49. Kg2 {[%clk 0:00:07]}  Qg4+ {[%clk 0:00:16]} 50. Kxf2 {[%clk 0:00:08]}  h5 {[%clk 0:00:16]} 51. Rg1 {[%clk 0:00:06]}  Qc8 {[%clk 0:00:17]} 52. Rg5 {[%clk 0:00:04]}  Kh6 {[%clk 0:00:17]} 53. Rd5 {[%clk 0:00:04]}  Qf8+ {[%clk 0:00:16]} 54. Ke3 {[%clk 0:00:04]}  Qa3+ {[%clk 0:00:16]} 55. Kd4 {[%clk 0:00:04]}  Qb4+ {[%clk 0:00:16]} 56. Ke5 {[%clk 0:00:04]}  Qe7+ {[%clk 0:00:16]} 57. Kd4 {[%clk 0:00:05]}  Qf6+ {[%clk 0:00:15]} 58. Kc5 {[%clk 0:00:04]}  Qc3+ {[%clk 0:00:15]} 59. Kd6 {[%clk 0:00:05]}  Qc6+ {[%clk 0:00:16]} 60. Ke5 {[%clk 0:00:05]}  h4 {[%clk 0:00:14]} 61. Rd6+ {[%clk 0:00:05]}  Qxd6+ {[%clk 0:00:12]} 62. Kxd6 {[%clk 0:00:06]}  h3 {[%clk 0:00:13]} 63. c8=Q {[%clk 0:00:06]}  h2 {[%clk 0:00:14]} 64. Qh8+ {[%clk 0:00:07]} 1-0


[Site "https://www.chess.com"]

[Event "Titled Tuesday Blitz June 28 Early 2022"]
[White "Averjanov, Alexey"]
[Black "Kozlov, Oleg"]
[WhiteFideId "14109867"]
[BlackFideId "4104544"]
[WhiteElo "2719"]
[BlackElo "2132"]
[Result "0-1"]
[Round "04"]
[TimeControl "180+1"]
[Date "2022.06.28"]
[WhiteClock "0:00:22"]
[BlackClock "0:01:31"]

1. d4 {[%clk 0:03:00]}  f5 {[%clk 0:02:59]} 2. c4 {[%clk 0:03:01]}  Nf6 {[%clk 0:02:55]} 3. Nf3 {[%clk 0:03:01]}  g6 {[%clk 0:02:55]} 4. g3 {[%clk 0:03:01]}  Bg7 {[%clk 0:02:56]} 5. Bg2 {[%clk 0:03:02]}  O-O {[%clk 0:02:56]} 6. O-O {[%clk 0:03:03]}  d6 {[%clk 0:02:56]} 7. b3 {[%clk 0:03:04]}  Ne4 {[%clk 0:02:55]} 8. Bb2 {[%clk 0:03:03]}  Nc6 {[%clk 0:02:55]} 9. Nbd2 {[%clk 0:03:03]}  Nxd2 {[%clk 0:02:54]} 10. Qxd2 {[%clk 0:03:04]}  e5 {[%clk 0:02:54]} 11. dxe5 {[%clk 0:03:04]}  dxe5 {[%clk 0:02:54]} 12. Qd5+ {[%clk 0:03:04]}  Kh8 {[%clk 0:02:55]} 13. Qxd8 {[%clk 0:02:57]}  Rxd8 {[%clk 0:02:56]} 14. Ng5 {[%clk 0:02:57]}  Rd2 {[%clk 0:02:37]} 15. Rad1 {[%clk 0:02:44]}  Rxb2 {[%clk 0:02:32]} 16. Bxc6 {[%clk 0:02:43]}  Bf6 {[%clk 0:02:28]} 17. Nf7+ {[%clk 0:02:04]}  Kg7 {[%clk 0:02:27]} 18. Bxb7 {[%clk 0:01:40]}  Bxb7 {[%clk 0:02:18]} 19. Rd7 {[%clk 0:01:40]}  Bc8 {[%clk 0:02:06]} 20. Rxc7 {[%clk 0:01:39]}  Kf8 {[%clk 0:01:58]} 21. Rd1 {[%clk 0:01:32]}  Be6 {[%clk 0:01:53]} 22. Rd6 {[%clk 0:01:21]}  Re8 {[%clk 0:01:53]} 23. Rxa7 {[%clk 0:00:54]}  Re7 {[%clk 0:01:33]} 24. c5 {[%clk 0:00:22]}  Rxa7 {[%clk 0:01:31]} 0-1


[Site "https://www.chess.com"]

[Event "Titled Tuesday Blitz June 28 Early 2022"]
[White "Bagrationi, Alexander"]
[Black "Jubin Jimmy"]
[WhiteFideId "14104954"]
[BlackFideId "46686614"]
[WhiteElo "2398"]
[BlackElo "2219"]
[Result "0-1"]
[Round "04"]
[TimeControl "180+1"]
[Date "2022.06.28"]
[WhiteClock "0:00:06"]
[BlackClock "0:00:40"]

1. d4 {[%clk 0:02:50]}  Nf6 {[%clk 0:02:59]} 2. c4 {[%clk 0:02:49]}  e6 {[%clk 0:02:59]} 3. Nf3 {[%clk 0:02:46]}  Bb4+ {[%clk 0:03:00]} 4. Nbd2 {[%clk 0:02:46]}  b6 {[%clk 0:02:53]} 5. a3 {[%clk 0:02:46]}  Bxd2+ {[%clk 0:02:48]} 6. Qxd2 {[%clk 0:02:47]}  Bb7 {[%clk 0:02:48]} 7. e3 {[%clk 0:02:46]}  d6 {[%clk 0:02:48]} 8. Be2 {[%clk 0:02:46]}  Nbd7 {[%clk 0:02:48]} 9. b4 {[%clk 0:02:44]}  O-O {[%clk 0:02:46]} 10. Bb2 {[%clk 0:02:45]}  Ne4 {[%clk 0:02:46]} 11. Qc2 {[%clk 0:02:45]}  f5 {[%clk 0:02:47]} 12. O-O {[%clk 0:02:43]}  Qe8 {[%clk 0:02:46]} 13. Ne1 {[%clk 0:02:42]}  Qg6 {[%clk 0:02:45]} 14. f3 {[%clk 0:02:38]}  Ng5 {[%clk 0:02:45]} 15. Nd3 {[%clk 0:02:34]}  f4 {[%clk 0:02:43]} 16. e4 {[%clk 0:02:27]}  Nxe4 {[%clk 0:01:59]} 17. fxe4 {[%clk 0:02:16]}  Bxe4 {[%clk 0:01:59]} 18. Rf2 {[%clk 0:02:16]}  f3 {[%clk 0:01:58]} 19. Bf1 {[%clk 0:02:16]}  fxg2 {[%clk 0:01:58]} 20. Rxg2 {[%clk 0:02:08]}  Bxg2 {[%clk 0:01:42]} 21. Qxg2 {[%clk 0:01:59]}  Qh6 {[%clk 0:01:42]} 22. Re1 {[%clk 0:01:57]}  Rae8 {[%clk 0:01:38]} 23. d5 {[%clk 0:01:52]}  e5 {[%clk 0:01:36]} 24. Bc1 {[%clk 0:01:52]}  Qh4 {[%clk 0:01:35]} 25. Re4 {[%clk 0:01:51]}  Qh5 {[%clk 0:01:27]} 26. Be2 {[%clk 0:01:49]}  Qf7 {[%clk 0:01:27]} 27. Bg4 {[%clk 0:01:40]}  Nf6 {[%clk 0:01:26]} 28. Be6 {[%clk 0:01:39]}  Rxe6 {[%clk 0:01:26]} 29. dxe6 {[%clk 0:01:39]}  Qxe6 {[%clk 0:01:26]} 30. Rh4 {[%clk 0:01:31]}  e4 {[%clk 0:01:26]} 31. Bh6 {[%clk 0:01:24]}  Rf7 {[%clk 0:01:25]} 32. Nf2 {[%clk 0:01:06]}  Qxc4 {[%clk 0:01:07]} 33. Nxe4 {[%clk 0:01:05]}  Qd4+ {[%clk 0:01:07]} 34. Qf2 {[%clk 0:00:26]}  Qxf2+ {[%clk 0:01:06]} 35. Nxf2 {[%clk 0:00:24]}  gxh6 {[%clk 0:01:06]} 36. Rxh6 {[%clk 0:00:24]}  Kg7 {[%clk 0:01:06]} 37. Rh3 {[%clk 0:00:22]}  Re7 {[%clk 0:01:06]} 38. Rc3 {[%clk 0:00:19]}  c5 {[%clk 0:01:06]} 39. bxc5 {[%clk 0:00:19]}  dxc5 {[%clk 0:01:06]} 40. Rc4 {[%clk 0:00:19]}  Re3 {[%clk 0:01:03]} 41. a4 {[%clk 0:00:19]}  Rb3 {[%clk 0:01:02]} 42. Rc2 {[%clk 0:00:17]}  Ra3 {[%clk 0:01:00]} 43. Rc4 {[%clk 0:00:16]}  Nd5 {[%clk 0:01:01]} 44. Ne4 {[%clk 0:00:14]}  Nb4 {[%clk 0:00:46]} 45. Nd6 {[%clk 0:00:11]}  Rxa4 {[%clk 0:00:45]} 46. Re4 {[%clk 0:00:11]}  Kf6 {[%clk 0:00:43]} 47. Ne8+ {[%clk 0:00:10]}  Kg6 {[%clk 0:00:42]} 48. h4 {[%clk 0:00:09]}  b5 {[%clk 0:00:40]} 49. Nd6 {[%clk 0:00:06]}  a6 {[%clk 0:00:40]} 0-1


[Site "https://www.chess.com"]